[Event "Titled Tuesday Blitz December 06 Early 2022"]
[White "Osmonbekov, Talaibek"]
[Black "Petrova, Irina"]
[WhiteFideId "2017253"]
[BlackFideId "14124122"]
[WhiteElo "2135"]
[BlackElo "2023"]
[Result "0-1"]
[Round "11"]
[TimeControl "180+1"]
[Date "2022.12.07"]
[WhiteClock "0:00:13"]
[BlackClock "0:00:27"]

1. d4 {[%clk 0:03:00]}  d6 {[%clk 0:03:00]} 2. Bf4 {[%clk 0:02:54]}  g6 {[%clk 0:02:59]} 3. Nc3 {[%clk 0:02:53]}  Bg7 {[%clk 0:03:00]} 4. e4 {[%clk 0:02:53]}  Nc6 {[%clk 0:02:57]} 5. d5 {[%clk 0:02:48]}  Ne5 {[%clk 0:02:53]} 6. Qd2 {[%clk 0:02:46]}  c6 {[%clk 0:02:50]} 7. Nf3 {[%clk 0:02:43]}  Nxf3+ {[%clk 0:02:49]} 8. gxf3 {[%clk 0:02:44]}  Nf6 {[%clk 0:02:48]} 9. O-O-O {[%clk 0:02:38]}  cxd5 {[%clk 0:02:43]} 10. exd5 {[%clk 0:02:37]}  O-O {[%clk 0:02:40]} 11. h4 {[%clk 0:02:36]}  h5 {[%clk 0:02:39]} 12. Bh6 {[%clk 0:02:35]}  Bf5 {[%clk 0:02:39]} 13. Rg1 {[%clk 0:02:30]}  Rc8 {[%clk 0:02:34]} 14. Bxg7 {[%clk 0:02:26]}  Kxg7 {[%clk 0:02:35]} 15. Bd3 {[%clk 0:02:26]}  Bxd3 {[%clk 0:02:32]} 16. Qxd3 {[%clk 0:02:27]}  Qa5 {[%clk 0:02:22]} 17. Kb1 {[%clk 0:02:23]}  a6 {[%clk 0:02:21]} 18. Rg5 {[%clk 0:02:23]}  Rxc3 {[%clk 0:01:46]} 19. Qxc3 {[%clk 0:02:19]}  Qxc3 {[%clk 0:01:46]} 20. bxc3 {[%clk 0:02:20]}  Rc8 {[%clk 0:01:47]} 21. Kb2 {[%clk 0:02:17]}  Rc4 {[%clk 0:01:46]} 22. Rd4 {[%clk 0:02:15]}  Rc5 {[%clk 0:01:37]} 23. c4 {[%clk 0:02:14]}  Nd7 {[%clk 0:01:36]} 24. Kb3 {[%clk 0:02:10]}  Ne5 {[%clk 0:01:33]} 25. Rg3 {[%clk 0:02:09]}  f6 {[%clk 0:01:01]} 26. f4 {[%clk 0:02:06]}  Ng4 {[%clk 0:01:01]} 27. Re4 {[%clk 0:01:42]}  Kf7 {[%clk 0:00:59]} 28. f3 {[%clk 0:01:33]}  Nh6 {[%clk 0:00:59]} 29. Rg2 {[%clk 0:01:15]}  Nf5 {[%clk 0:00:59]} 30. Rh2 {[%clk 0:01:14]}  b5 {[%clk 0:00:53]} 31. cxb5 {[%clk 0:01:05]}  Rxb5+ {[%clk 0:00:54]} 32. Kc4 {[%clk 0:01:05]}  Rc5+ {[%clk 0:00:54]} 33. Kb4 {[%clk 0:01:01]}  Rxd5 {[%clk 0:00:54]} 34. c4 {[%clk 0:01:00]}  Rd3 {[%clk 0:00:53]} 35. a4 {[%clk 0:00:54]}  Rxf3 {[%clk 0:00:51]} 36. Ka5 {[%clk 0:00:49]}  Ra3 {[%clk 0:00:48]} 37. c5 {[%clk 0:00:47]}  dxc5 {[%clk 0:00:46]} 38. Kxa6 {[%clk 0:00:47]}  Nd6 {[%clk 0:00:47]} 39. Re1 {[%clk 0:00:33]}  Rxa4+ {[%clk 0:00:47]} 40. Kb6 {[%clk 0:00:33]}  Rxf4 {[%clk 0:00:46]} 41. Rhe2 {[%clk 0:00:28]}  Nf5 {[%clk 0:00:46]} 42. Re4 {[%clk 0:00:26]}  Rxh4 {[%clk 0:00:43]} 43. Kxc5 {[%clk 0:00:21]}  Rxe4 {[%clk 0:00:41]} 44. Rxe4 {[%clk 0:00:20]}  h4 {[%clk 0:00:41]} 45. Kd5 {[%clk 0:00:16]}  h3 {[%clk 0:00:39]} 46. Re2 {[%clk 0:00:16]}  g5 {[%clk 0:00:37]} 47. Rf2 {[%clk 0:00:15]}  e6+ {[%clk 0:00:35]} 48. Ke4 {[%clk 0:00:15]}  Kg6 {[%clk 0:00:30]} 49. Kf3 {[%clk 0:00:15]}  Kh5 {[%clk 0:00:28]} 50. Re2 {[%clk 0:00:12]}  Nd4+ {[%clk 0:00:26]} 51. Kf2 {[%clk 0:00:12]}  Nxe2 {[%clk 0:00:27]} 52. Kxe2 {[%clk 0:00:13]}  h2 {[%clk 0:00:27]} 0-1


[Site "https://www.chess.com"]

[Event "Titled Tuesday Blitz December 06 Early 2022"]
[White "Ovchinnikov, Vsevolod"]
[Black "Matinian, Nikita"]
[WhiteFideId "24176842"]
[BlackFideId "24129100"]
[WhiteElo "2376"]
[BlackElo "2422"]
[Result "1-0"]
[Round "11"]
[TimeControl "180+1"]
[Date "2022.12.06"]
[WhiteClock "0:00:12"]
[BlackClock "0:00:27"]

1. d4 {[%clk 0:03:00]}  g6 {[%clk 0:03:00]} 2. e4 {[%clk 0:02:59]}  Bg7 {[%clk 0:03:01]} 3. Nf3 {[%clk 0:02:59]}  d6 {[%clk 0:03:02]} 4. h3 {[%clk 0:03:00]}  Nf6 {[%clk 0:03:01]} 5. Bd3 {[%clk 0:02:59]}  Nc6 {[%clk 0:03:01]} 6. O-O {[%clk 0:02:54]}  e5 {[%clk 0:03:01]} 7. c3 {[%clk 0:02:55]}  O-O {[%clk 0:03:01]} 8. Re1 {[%clk 0:02:55]}  Re8 {[%clk 0:02:59]} 9. Nbd2 {[%clk 0:02:53]}  d5 {[%clk 0:02:49]} 10. dxe5 {[%clk 0:02:24]}  Nxe5 {[%clk 0:02:45]} 11. Nxe5 {[%clk 0:02:24]}  Rxe5 {[%clk 0:02:46]} 12. Nf3 {[%clk 0:02:23]}  Rxe4 {[%clk 0:02:44]} 13. Bxe4 {[%clk 0:02:23]}  Nxe4 {[%clk 0:02:43]} 14. Rxe4 {[%clk 0:02:16]}  Bxh3 {[%clk 0:02:43]} 15. Rh4 {[%clk 0:02:09]}  Bf5 {[%clk 0:02:42]} 16. Bg5 {[%clk 0:02:08]}  Qd6 {[%clk 0:02:39]} 17. Qd2 {[%clk 0:02:02]}  c6 {[%clk 0:02:39]} 18. Re1 {[%clk 0:02:01]}  h5 {[%clk 0:02:39]} 19. Nd4 {[%clk 0:01:51]}  Bg4 {[%clk 0:02:35]} 20. f3 {[%clk 0:01:41]}  Bd7 {[%clk 0:02:35]} 21. Qf4 {[%clk 0:01:33]}  Qxf4 {[%clk 0:02:35]} 22. Rxf4 {[%clk 0:01:30]}  c5 {[%clk 0:02:34]} 23. Nb3 {[%clk 0:01:26]}  b6 {[%clk 0:02:30]} 24. g4 {[%clk 0:00:49]}  hxg4 {[%clk 0:02:29]} 25. fxg4 {[%clk 0:00:50]}  Be6 {[%clk 0:02:29]} 26. Bf6 {[%clk 0:00:46]}  Bxf6 {[%clk 0:02:28]} 27. Rxf6 {[%clk 0:00:47]}  Bxg4 {[%clk 0:02:29]} 28. Kf2 {[%clk 0:00:45]}  Kg7 {[%clk 0:02:27]} 29. Rd6 {[%clk 0:00:45]}  Be6 {[%clk 0:02:25]} 30. Rh1 {[%clk 0:00:42]}  a5 {[%clk 0:02:22]} 31. Nd2 {[%clk 0:00:41]}  b5 {[%clk 0:02:18]} 32. Nf3 {[%clk 0:00:40]}  Kf6 {[%clk 0:02:16]} 33. Rb6 {[%clk 0:00:38]}  b4 {[%clk 0:02:16]} 34. Kg3 {[%clk 0:00:35]}  bxc3 {[%clk 0:01:39]} 35. bxc3 {[%clk 0:00:36]}  a4 {[%clk 0:01:39]} 36. a3 {[%clk 0:00:36]}  Rd8 {[%clk 0:01:09]} 37. Rf1 {[%clk 0:00:34]}  Kg7 {[%clk 0:00:45]} 38. Ng5 {[%clk 0:00:34]}  Bf5 {[%clk 0:00:45]} 39. Rb7 {[%clk 0:00:30]}  Kf6 {[%clk 0:00:43]} 40. Nxf7 {[%clk 0:00:22]}  Re8 {[%clk 0:00:41]} 41. Nd6 {[%clk 0:00:20]}  Re2 {[%clk 0:00:36]} 42. Nxf5 {[%clk 0:00:18]}  gxf5 {[%clk 0:00:37]} 43. Rc7 {[%clk 0:00:15]}  d4 {[%clk 0:00:34]} 44. Rxc5 {[%clk 0:00:15]}  d3 {[%clk 0:00:34]} 45. Rd5 {[%clk 0:00:14]}  d2 {[%clk 0:00:33]} 46. Rd1 {[%clk 0:00:13]}  Re3+ {[%clk 0:00:33]} 47. Kf2 {[%clk 0:00:13]}  Rxc3 {[%clk 0:00:33]} 48. R1xd2 {[%clk 0:00:13]}  Rxa3 {[%clk 0:00:34]} 49. Ra5 {[%clk 0:00:14]}  Kg5 {[%clk 0:00:33]} 50. Rdd5 {[%clk 0:00:14]}  Kf4 {[%clk 0:00:27]} 51. Rxf5+ {[%clk 0:00:13]}  Ke4 {[%clk 0:00:28]} 52. Rfb5 {[%clk 0:00:12]}  Ra2+ {[%clk 0:00:27]} 53. Kg3 {[%clk 0:00:12]}  Kd3 {[%clk 0:00:27]} 54. Rb4 {[%clk 0:00:12]}  a3 {[%clk 0:00:27]} 55. Rb3+ {[%clk 0:00:12]} 1-0


[Site "https://www.chess.com"]

[Event "Titled Tuesday Blitz December 06 Early 2022"]
[White "Palacio,Igor Da Paz"]
[Black "Lauridsen, Jesper Morch"]
[WhiteFideId "2121140"]
[BlackFideId "1401890"]
[WhiteElo "2126"]
[BlackElo "2247"]
[Result "0-1"]
[Round "11"]
[TimeControl "180+1"]
[Date "2022.12.07"]
[WhiteClock "0:00:01"]
[BlackClock "0:00:49"]

1. e4 {[%clk 0:03:00]}  c5 {[%clk 0:02:54]} 2. Nc3 {[%clk 0:03:00]}  a6 {[%clk 0:02:52]} 3. g3 {[%clk 0:03:00]}  e6 {[%clk 0:02:52]} 4. Bg2 {[%clk 0:03:00]}  b5 {[%clk 0:02:50]} 5. d3 {[%clk 0:02:58]}  Bb7 {[%clk 0:02:51]} 6. f4 {[%clk 0:02:57]}  d5 {[%clk 0:02:50]} 7. exd5 {[%clk 0:02:51]}  exd5 {[%clk 0:02:49]} 8. Qe2+ {[%clk 0:02:40]}  Be7 {[%clk 0:02:48]} 9. Nf3 {[%clk 0:02:36]}  Nf6 {[%clk 0:02:45]} 10. O-O {[%clk 0:02:32]}  d4 {[%clk 0:02:35]} 11. Ne4 {[%clk 0:02:30]}  Nd5 {[%clk 0:02:33]} 12. Nxc5 {[%clk 0:02:26]}  Bc6 {[%clk 0:02:19]} 13. Nxd4 {[%clk 0:02:19]}  O-O {[%clk 0:02:19]} 14. Ne4 {[%clk 0:02:12]}  Nxf4 {[%clk 0:02:15]} 15. Bxf4 {[%clk 0:02:07]}  Qxd4+ {[%clk 0:02:15]} 16. Qf2 {[%clk 0:01:49]}  Qxb2 {[%clk 0:02:12]} 17. c3 {[%clk 0:01:08]}  Qa3 {[%clk 0:02:03]} 18. Rac1 {[%clk 0:00:46]}  Nd7 {[%clk 0:01:58]} 19. h3 {[%clk 0:00:40]}  Rac8 {[%clk 0:01:52]} 20. Kh2 {[%clk 0:00:39]}  Nf6 {[%clk 0:01:44]} 21. Nxf6+ {[%clk 0:00:37]}  Bxf6 {[%clk 0:01:44]} 22. Bxc6 {[%clk 0:00:16]}  Rxc6 {[%clk 0:01:41]} 23. c4 {[%clk 0:00:15]}  Qxd3 {[%clk 0:01:35]} 24. cxb5 {[%clk 0:00:14]}  Rxc1 {[%clk 0:01:34]} 25. Rxc1 {[%clk 0:00:15]}  axb5 {[%clk 0:01:32]} 26. Qc2 {[%clk 0:00:11]}  Qxc2+ {[%clk 0:01:28]} 27. Rxc2 {[%clk 0:00:11]}  Ra8 {[%clk 0:01:28]} 28. g4 {[%clk 0:00:09]}  h6 {[%clk 0:01:28]} 29. Kg2 {[%clk 0:00:07]}  b4 {[%clk 0:01:27]} 30. Kf2 {[%clk 0:00:04]}  Ra3 {[%clk 0:01:23]} 31. Kg2 {[%clk 0:00:03]}  Kh7 {[%clk 0:01:23]} 32. Bc1 {[%clk 0:00:02]}  Ra6 {[%clk 0:01:19]} 33. Be3 {[%clk 0:00:02]}  Bc3 {[%clk 0:01:19]} 34. Bf2 {[%clk 0:00:01]}  Kg6 {[%clk 0:01:19]} 35. Kf3 {[%clk 0:00:01]}  f6 {[%clk 0:01:19]} 36. Bg3 {[%clk 0:00:01]}  Ra3 {[%clk 0:01:18]} 37. Kg2 {[%clk 0:00:01]}  f5 {[%clk 0:01:19]} 38. gxf5+ {[%clk 0:00:01]}  Kxf5 {[%clk 0:01:19]} 39. Rf2+ {[%clk 0:00:01]}  Kg6 {[%clk 0:01:17]} 40. Bf4 {[%clk 0:00:01]}  Bf6 {[%clk 0:01:14]} 41. Re2 {[%clk 0:00:01]}  h5 {[%clk 0:01:11]} 42. Bg3 {[%clk 0:00:02]}  h4 {[%clk 0:01:10]} 43. Bf2 {[%clk 0:00:02]}  Kf5 {[%clk 0:01:05]} 44. Rc2 {[%clk 0:00:03]}  g5 {[%clk 0:01:04]} 45. Kh2 {[%clk 0:00:03]}  Be5+ {[%clk 0:01:01]} 46. Kg2 {[%clk 0:00:03]}  g4 {[%clk 0:00:59]} 47. hxg4+ {[%clk 0:00:03]}  Kxg4 {[%clk 0:00:59]} 48. Bc5 {[%clk 0:00:03]}  h3+ {[%clk 0:00:52]} 49. Kh1 {[%clk 0:00:02]}  Rc3 {[%clk 0:00:51]} 50. Re2 {[%clk 0:00:01]}  Rxc5 {[%clk 0:00:51]} 51. Re4+ {[%clk 0:00:01]}  Kf5 {[%clk 0:00:50]} 52. Rxb4 {[%clk 0:00:01]}  Rc1# {[%clk 0:00:49]} 0-1


[Site "https://www.chess.com"]

[Event "Titled Tuesday Blitz December 06 Early 2022"]
[White "Postnikov, Artem"]
[Black "Rosenberg, Evan S"]
[WhiteFideId "34153575"]
[BlackFideId "2019299"]
[WhiteElo "2243"]
[BlackElo "2383"]
[Result "0-1"]
[Round "11"]
[TimeControl "180+1"]
[Date "2022.12.07"]
[WhiteClock "0:00:03"]
[BlackClock "0:00:16"]

1. d4 {[%clk 0:03:00]}  d5 {[%clk 0:02:59]} 2. c4 {[%clk 0:03:01]}  e6 {[%clk 0:03:00]} 3. Nc3 {[%clk 0:03:01]}  c5 {[%clk 0:03:01]} 4. cxd5 {[%clk 0:02:54]}  cxd4 {[%clk 0:03:01]} 5. Qxd4 {[%clk 0:02:54]}  Nc6 {[%clk 0:03:01]} 6. Qd1 {[%clk 0:02:52]}  exd5 {[%clk 0:03:01]} 7. Qxd5 {[%clk 0:02:46]}  Qc7 {[%clk 0:03:00]} 8. e4 {[%clk 0:02:36]}  Nf6 {[%clk 0:02:52]} 9. Qd1 {[%clk 0:02:29]}  Bb4 {[%clk 0:02:48]} 10. Bd3 {[%clk 0:02:28]}  O-O {[%clk 0:02:43]} 11. Ne2 {[%clk 0:02:28]}  Rd8 {[%clk 0:02:38]} 12. Qc2 {[%clk 0:02:24]}  Ne5 {[%clk 0:02:24]} 13. Bf4 {[%clk 0:01:58]}  Nxd3+ {[%clk 0:01:45]} 14. Qxd3 {[%clk 0:01:57]}  Rxd3 {[%clk 0:01:46]} 15. Bxc7 {[%clk 0:01:56]}  Nxe4 {[%clk 0:01:47]} 16. Rc1 {[%clk 0:01:19]}  Bf5 {[%clk 0:01:11]} 17. O-O {[%clk 0:00:49]}  Rc8 {[%clk 0:01:01]} 18. Nxe4 {[%clk 0:00:29]}  Bxe4 {[%clk 0:00:56]} 19. Rc4 {[%clk 0:00:27]}  Bc6 {[%clk 0:00:53]} 20. Rxb4 {[%clk 0:00:25]}  Rxc7 {[%clk 0:00:53]} 21. Nc3 {[%clk 0:00:22]}  h5 {[%clk 0:00:41]} 22. h3 {[%clk 0:00:16]}  a6 {[%clk 0:00:38]} 23. Rd1 {[%clk 0:00:15]}  Rcd7 {[%clk 0:00:35]} 24. Rxd3 {[%clk 0:00:14]}  Rxd3 {[%clk 0:00:36]} 25. f3 {[%clk 0:00:07]}  Rd2 {[%clk 0:00:35]} 26. h4 {[%clk 0:00:07]}  g6 {[%clk 0:00:34]} 27. a4 {[%clk 0:00:07]}  Kg7 {[%clk 0:00:34]} 28. Rc4 {[%clk 0:00:04]}  Rxb2 {[%clk 0:00:31]} 29. Ne4 {[%clk 0:00:04]}  Bxe4 {[%clk 0:00:27]} 30. Rxe4 {[%clk 0:00:03]}  b5 {[%clk 0:00:26]} 31. axb5 {[%clk 0:00:03]}  axb5 {[%clk 0:00:27]} 32. Rd4 {[%clk 0:00:02]}  b4 {[%clk 0:00:27]} 33. Rd6 {[%clk 0:00:01]}  b3 {[%clk 0:00:28]} 34. Rb6 {[%clk 0:00:02]}  Rb1+ {[%clk 0:00:27]} 35. Kh2 {[%clk 0:00:02]}  Kf8 {[%clk 0:00:27]} 36. Kg3 {[%clk 0:00:02]}  Ke7 {[%clk 0:00:27]} 37. Kf4 {[%clk 0:00:03]}  f6 {[%clk 0:00:26]} 38. g3 {[%clk 0:00:03]}  b2 {[%clk 0:00:23]} 39. Rb3 {[%clk 0:00:02]}  Kd6 {[%clk 0:00:21]} 40. Rb8 {[%clk 0:00:02]}  Kd5 {[%clk 0:00:20]} 41. Rb6 {[%clk 0:00:02]}  Kd4 {[%clk 0:00:20]} 42. Rb8 {[%clk 0:00:02]}  Kd3 {[%clk 0:00:20]} 43. Rb6 {[%clk 0:00:02]}  Ke2 {[%clk 0:00:20]} 44. Rb8 {[%clk 0:00:03]}  Kf2 {[%clk 0:00:20]} 45. Rb3 {[%clk 0:00:03]}  Kg2 {[%clk 0:00:20]} 46. Rb8 {[%clk 0:00:03]}  Rf1 {[%clk 0:00:19]} 47. Rxb2+ {[%clk 0:00:03]}  Rf2 {[%clk 0:00:16]} 48. Rxf2+ {[%clk 0:00:03]}  Kxf2 {[%clk 0:00:17]} 49. g4 {[%clk 0:00:03]}  Kg2 {[%clk 0:00:16]} 50. g5 {[%clk 0:00:03]}  fxg5+ {[%clk 0:00:15]} 51. Kxg5 {[%clk 0:00:03]}  Kxf3 {[%clk 0:00:16]} 52. Kxg6 {[%clk 0:00:03]}  Kg4 {[%clk 0:00:16]} 53. Kf6 {[%clk 0:00:03]}  Kxh4 {[%clk 0:00:16]} 0-1


[Site "https://www.chess.com"]

[Event "Titled Tuesday Blitz December 06 Early 2022"]
[White "Predke, Alexandr"]
[Black "Pakleza, Zbigniew"]
[WhiteFideId "24107581"]
[BlackFideId "1119290"]
[WhiteElo "2616"]
[BlackElo "2410"]
[Result "1-0"]
[Round "11"]
[TimeControl "180+1"]
[Date "2022.12.06"]
[WhiteClock "0:00:13"]
[BlackClock "0:00:13"]

1. Nf3 {[%clk 0:03:00]}  d5 {[%clk 0:03:00]} 2. g3 {[%clk 0:03:00]}  Nf6 {[%clk 0:03:00]} 3. Bg2 {[%clk 0:03:00]}  c6 {[%clk 0:03:01]} 4. O-O {[%clk 0:03:00]}  Bf5 {[%clk 0:03:01]} 5. c4 {[%clk 0:02:57]}  e6 {[%clk 0:03:02]} 6. Qb3 {[%clk 0:02:51]}  Qb6 {[%clk 0:03:02]} 7. d3 {[%clk 0:02:51]}  Nbd7 {[%clk 0:03:01]} 8. Qc2 {[%clk 0:02:50]}  h6 {[%clk 0:02:57]} 9. cxd5 {[%clk 0:02:43]}  cxd5 {[%clk 0:02:54]} 10. Be3 {[%clk 0:02:42]}  Bc5 {[%clk 0:02:50]} 11. Bxc5 {[%clk 0:02:42]}  Nxc5 {[%clk 0:02:50]} 12. Rc1 {[%clk 0:02:41]}  Ncd7 {[%clk 0:02:41]} 13. Nc3 {[%clk 0:02:40]}  O-O {[%clk 0:02:39]} 14. Na4 {[%clk 0:02:39]}  Qa5 {[%clk 0:02:32]} 15. Nd4 {[%clk 0:02:15]}  Bg6 {[%clk 0:02:27]} 16. Nc5 {[%clk 0:01:52]}  Rfc8 {[%clk 0:02:08]} 17. Nxb7 {[%clk 0:01:47]}  Qb6 {[%clk 0:01:51]} 18. Nc6 {[%clk 0:01:47]}  Kh7 {[%clk 0:01:35]} 19. Nba5 {[%clk 0:01:20]}  Ng4 {[%clk 0:01:18]} 20. e4 {[%clk 0:00:50]}  Nde5 {[%clk 0:01:05]} 21. d4 {[%clk 0:00:41]}  Nc4 {[%clk 0:00:40]} 22. Nxc4 {[%clk 0:00:33]}  Qxc6 {[%clk 0:00:41]} 23. Qe2 {[%clk 0:00:30]}  Nf6 {[%clk 0:00:31]} 24. exd5 {[%clk 0:00:27]}  exd5 {[%clk 0:00:28]} 25. Qd1 {[%clk 0:00:08]}  dxc4 {[%clk 0:00:10]} 26. Bxc6 {[%clk 0:00:08]}  Rxc6 {[%clk 0:00:11]} 27. d5 {[%clk 0:00:06]}  Rc5 {[%clk 0:00:11]} 28. d6 {[%clk 0:00:06]}  Rd8 {[%clk 0:00:10]} 29. Qd4 {[%clk 0:00:06]}  Rd5 {[%clk 0:00:10]} 30. Qxc4 {[%clk 0:00:06]}  R8xd6 {[%clk 0:00:11]} 31. Re1 {[%clk 0:00:07]}  Rd2 {[%clk 0:00:09]} 32. b4 {[%clk 0:00:05]}  Rb2 {[%clk 0:00:06]} 33. Rad1 {[%clk 0:00:05]}  Rb6 {[%clk 0:00:05]} 34. a3 {[%clk 0:00:05]}  a5 {[%clk 0:00:05]} 35. bxa5 {[%clk 0:00:05]}  R6b3 {[%clk 0:00:06]} 36. Ra1 {[%clk 0:00:04]}  Rf3 {[%clk 0:00:02]} 37. Re2 {[%clk 0:00:03]}  Bd3 {[%clk 0:00:03]} 38. Qxd3+ {[%clk 0:00:03]}  Rxd3 {[%clk 0:00:02]} 39. Rxb2 {[%clk 0:00:04]}  Rd5 {[%clk 0:00:02]} 40. a6 {[%clk 0:00:03]}  Ra5 {[%clk 0:00:03]} 41. a4 {[%clk 0:00:04]}  Nd7 {[%clk 0:00:03]} 42. Rb5 {[%clk 0:00:04]}  Rxa6 {[%clk 0:00:03]} 43. a5 {[%clk 0:00:05]}  Kg6 {[%clk 0:00:03]} 44. Rd1 {[%clk 0:00:05]}  Nf6 {[%clk 0:00:03]} 45. Ra1 {[%clk 0:00:05]}  Nd7 {[%clk 0:00:02]} 46. Rd1 {[%clk 0:00:05]}  Nf6 {[%clk 0:00:02]} 47. Kg2 {[%clk 0:00:05]}  h5 {[%clk 0:00:03]} 48. h4 {[%clk 0:00:04]}  Kh7 {[%clk 0:00:01]} 49. Rdb1 {[%clk 0:00:04]}  Nd7 {[%clk 0:00:01]} 50. Rd5 {[%clk 0:00:04]}  Nf6 {[%clk 0:00:01]} 51. Rf5 {[%clk 0:00:04]}  Ra7 {[%clk 0:00:02]} 52. Rb6 {[%clk 0:00:04]}  Ng4 {[%clk 0:00:02]} 53. a6 {[%clk 0:00:04]}  g6 {[%clk 0:00:02]} 54. Ra5 {[%clk 0:00:04]}  Kg7 {[%clk 0:00:02]} 55. Rb7 {[%clk 0:00:04]}  Ra8 {[%clk 0:00:03]} 56. a7 {[%clk 0:00:05]}  Ne5 {[%clk 0:00:04]} 57. Rb8 {[%clk 0:00:05]}  Rxa7 {[%clk 0:00:05]} 58. Rxa7 {[%clk 0:00:06]}  Nc6 {[%clk 0:00:05]} 59. Rbb7 {[%clk 0:00:06]}  Nxa7 {[%clk 0:00:06]} 60. Rxa7 {[%clk 0:00:06]}  g5 {[%clk 0:00:06]} 61. hxg5 {[%clk 0:00:06]}  Kg6 {[%clk 0:00:07]} 62. f4 {[%clk 0:00:07]}  f6 {[%clk 0:00:07]} 63. Kf3 {[%clk 0:00:07]}  fxg5 {[%clk 0:00:08]} 64. Ra6+ {[%clk 0:00:08]}  Kf5 {[%clk 0:00:08]} 65. Ra5+ {[%clk 0:00:08]}  Kg6 {[%clk 0:00:08]} 66. Rxg5+ {[%clk 0:00:09]}  Kh6 {[%clk 0:00:09]} 67. Ke4 {[%clk 0:00:09]}  h4 {[%clk 0:00:10]} 68. gxh4 {[%clk 0:00:10]}  Kh7 {[%clk 0:00:10]} 69. Kf5 {[%clk 0:00:11]}  Kh6 {[%clk 0:00:11]} 70. Kf6 {[%clk 0:00:12]}  Kh7 {[%clk 0:00:11]} 71. Kf7 {[%clk 0:00:12]}  Kh6 {[%clk 0:00:12]} 72. Rf5 {[%clk 0:00:12]}  Kh7 {[%clk 0:00:13]} 73. Rh5# {[%clk 0:00:13]} 1-0


[Site "https://www.chess.com"]

[Event "Titled Tuesday Blitz December 06 Early 2022"]
[White "Putnam, Liam"]
[Black "Gong, Qianyun"]
[WhiteFideId "30938279"]
[BlackFideId "8602425"]
[WhiteElo "2082"]
[BlackElo "2199"]
[Result "1-0"]
[Round "11"]
[TimeControl "180+1"]
[Date "2022.12.06"]
[WhiteClock "0:01:17"]
[BlackClock "0:00:27"]

1. a3 {[%clk 0:03:00]}  d5 {[%clk 0:02:59]} 2. Nf3 {[%clk 0:02:51]}  c5 {[%clk 0:02:56]} 3. e3 {[%clk 0:02:50]}  Nc6 {[%clk 0:02:56]} 4. c4 {[%clk 0:02:47]}  e6 {[%clk 0:02:55]} 5. cxd5 {[%clk 0:02:46]}  exd5 {[%clk 0:02:56]} 6. d4 {[%clk 0:02:46]}  c4 {[%clk 0:02:53]} 7. Nc3 {[%clk 0:02:46]}  Nf6 {[%clk 0:02:52]} 8. Be2 {[%clk 0:02:38]}  Bd6 {[%clk 0:02:51]} 9. O-O {[%clk 0:02:38]}  O-O {[%clk 0:02:51]} 10. b3 {[%clk 0:02:30]}  cxb3 {[%clk 0:02:33]} 11. Qxb3 {[%clk 0:02:31]}  Na5 {[%clk 0:02:30]} 12. Qb1 {[%clk 0:02:26]}  Re8 {[%clk 0:02:19]} 13. Bd2 {[%clk 0:02:12]}  g6 {[%clk 0:02:13]} 14. Rc1 {[%clk 0:02:07]}  a6 {[%clk 0:02:04]} 15. Na4 {[%clk 0:02:05]}  b5 {[%clk 0:01:58]} 16. Bxa5 {[%clk 0:01:57]}  Qxa5 {[%clk 0:01:59]} 17. Nc5 {[%clk 0:01:57]}  Qd8 {[%clk 0:01:49]} 18. a4 {[%clk 0:01:54]}  Bxc5 {[%clk 0:01:42]} 19. dxc5 {[%clk 0:01:50]}  bxa4 {[%clk 0:01:26]} 20. Rxa4 {[%clk 0:01:51]}  Bf5 {[%clk 0:01:19]} 21. Qa1 {[%clk 0:01:48]}  Ne4 {[%clk 0:01:05]} 22. Rxa6 {[%clk 0:01:43]}  Rc8 {[%clk 0:01:05]} 23. c6 {[%clk 0:01:41]}  Qe7 {[%clk 0:01:04]} 24. Ra7 {[%clk 0:01:40]}  Qd6 {[%clk 0:00:59]} 25. c7 {[%clk 0:01:37]}  Re7 {[%clk 0:00:48]} 26. Ba6 {[%clk 0:01:34]}  Rexc7 {[%clk 0:00:37]} 27. Rcxc7 {[%clk 0:01:35]}  Qxc7 {[%clk 0:00:34]} 28. Rxc7 {[%clk 0:01:32]}  Rxc7 {[%clk 0:00:35]} 29. Bd3 {[%clk 0:01:18]}  h6 {[%clk 0:00:29]} 30. h3 {[%clk 0:01:17]}  Rb7 {[%clk 0:00:27]} 1-0


[Site "https://www.chess.com"]

[Event "Titled Tuesday Blitz December 06 Early 2022"]
[White "Raahul V S"]
[Black "Zaichenko, Daria"]
[WhiteFideId "25035525"]
[BlackFideId "4197453"]
[WhiteElo "2202"]
[BlackElo "2039"]
[Result "0-1"]
[Round "11"]
[TimeControl "180+1"]
[Date "2022.12.07"]
[WhiteClock "0:01:33"]
[BlackClock "0:01:41"]

1. b3 {[%clk 0:03:00]}  d5 {[%clk 0:02:58]} 2. Bb2 {[%clk 0:02:57]}  c5 {[%clk 0:02:57]} 3. e3 {[%clk 0:02:55]}  Nc6 {[%clk 0:02:57]} 4. Nf3 {[%clk 0:02:54]}  Nf6 {[%clk 0:02:56]} 5. Bb5 {[%clk 0:02:54]}  Bd7 {[%clk 0:02:56]} 6. O-O {[%clk 0:02:53]}  e6 {[%clk 0:02:56]} 7. c4 {[%clk 0:02:53]}  Bd6 {[%clk 0:02:56]} 8. cxd5 {[%clk 0:02:52]}  exd5 {[%clk 0:02:56]} 9. d4 {[%clk 0:02:53]}  cxd4 {[%clk 0:02:50]} 10. Nxd4 {[%clk 0:02:51]}  Nxd4 {[%clk 0:02:50]} 11. Bxd7+ {[%clk 0:02:51]}  Qxd7 {[%clk 0:02:50]} 12. Qxd4 {[%clk 0:02:52]}  O-O {[%clk 0:02:50]} 13. Nc3 {[%clk 0:02:52]}  Rac8 {[%clk 0:02:48]} 14. Rad1 {[%clk 0:02:49]}  Bc5 {[%clk 0:02:47]} 15. Qh4 {[%clk 0:02:44]}  Rfd8 {[%clk 0:02:42]} 16. Ne2 {[%clk 0:02:29]}  Qf5 {[%clk 0:02:32]} 17. Bxf6 {[%clk 0:02:07]}  Qxf6 {[%clk 0:02:31]} 18. Qxf6 {[%clk 0:02:06]}  gxf6 {[%clk 0:02:31]} 19. Rd3 {[%clk 0:02:07]}  Bb6 {[%clk 0:02:26]} 20. Nf4 {[%clk 0:02:01]}  d4 {[%clk 0:02:21]} 21. e4 {[%clk 0:01:58]}  Rc3 {[%clk 0:02:06]} 22. Rfd1 {[%clk 0:01:58]}  Rxd3 {[%clk 0:02:06]} 23. Rxd3 {[%clk 0:01:57]}  Rc8 {[%clk 0:02:06]} 24. g3 {[%clk 0:01:47]}  Rc1+ {[%clk 0:02:04]} 25. Kg2 {[%clk 0:01:47]}  Rc2 {[%clk 0:02:03]} 26. Nd5 {[%clk 0:01:42]}  Bc5 {[%clk 0:02:01]} 27. Nxf6+ {[%clk 0:01:36]}  Kg7 {[%clk 0:01:59]} 28. Nd5 {[%clk 0:01:37]}  a5 {[%clk 0:01:49]} 29. a3 {[%clk 0:01:33]}  Bxa3 {[%clk 0:01:41]} 0-1


[Site "https://www.chess.com"]